fUSD/lending_fUSD_20240129
["ID","MTS","AMOUNT","RATE_DAILY","PERIOD"]
[312964716,1706550641279,-150.0,0.0003,7]
[312964717,1706550641289,-4961.49630549,0.0003,4]
[312964718,1706550641299,-155.0,0.0003,2]
[312964719,1706550641309,-154.77,0.00030137,2]
[312964720,1706550641317,-224.11193058,0.00030279,2]
[312964721,1706550641327,-1000.0,0.00030443,7]
[312964722,1706550641336,-1000.0,0.00030443,7]
[312964723,1706550641345,-224.29389476,0.00030443,6]
[312964724,1706550641354,-503.30974587,0.00030443,6]
[312964725,1706550641364,-202.34009025,0.00030443,6]
[312964726,1706550641373,-307.99423042,0.00030443,6]
[312964727,1706550641382,-1000.0,0.00030443,7]
[312964728,1706550641392,-224.11193058,0.00030942,2]
[312964729,1706550641401,-614.98377508,0.00031,3]
[312964730,1706550641413,-85.01622492,0.00031,3]
[312964731,1706550641422,-150.14,0.00031107,2]
[312964732,1706550641431,-400.0,0.000313,3]
[312964733,1706550641440,-400.0,0.000313,3]
[312964734,1706550641451,-400.0,0.000313,3]
[312964735,1706550641460,-366.64377588,0.000313,3]
[312964736,1706550641479,-33.35622412,0.000313,3]
[312964737,1706550641488,-577.75434099,0.00031359,4]
[312964738,1706550641498,-150.0,0.00031452,2]
[312964739,1706550641507,-88.84634387,0.00031491,2]
[312964740,1706550641520,-111.15365613,0.00031491,2]
[312964741,1706550641529,-224.11193058,0.00031605,2]
[312964742,1706550641538,-42.36513397,0.00031644,2]
[312964743,1706550641550,-137.63486603,0.00031644,2]
[312964744,1706550641559,-524.58430955,0.00031646,2]
[312964745,1706550641572,-430.61952,0.00031646,2]
[312964746,1706550641588,-114.30617045,0.00031646,2]
[312964747,1706550641597,-461.6029,0.00031808,2]
[312964748,1706550641606,-668.58722492,0.00031808,2]
[312964749,1706550641621,-1257.75777508,0.00031808,2]
[312964750,1706550641630,-421.8746,0.00031808,2]
[312964751,1706550641639,-224.11193058,0.00032268,2]
[312964752,1706550641648,-167.79,0.00032334,2]
[312964753,1706550641658,-190.96840159,0.000325,2]
[312964754,1706550641691,-1835.08159841,0.000325,2]
[312964755,1706550641701,-561.86622075,0.00032835,4]
[312964756,1706550641710,-224.11193058,0.00032932,2]
[312964757,1706550641720,-750.0,0.00033,3]
[312964758,1706550641729,-301.9909738,0.00033204,7]
[312964759,1706550641739,-224.11193058,0.00033595,2]
[312964760,1706550641748,-1069.51,0.0003391,2]
[312964761,1706550641757,-224.11193058,0.00034258,2]
[312964762,1706550641767,-151.0,0.00034703,120]
[312964763,1706550641777,-8983.97726548,0.000349,4]
[312964764,1706550641786,-224.11193058,0.00034921,2]
[312964765,1706550641795,-5000.0,0.00035,7]
[312964766,1706550641805,-1454.69093184,0.00035,2]
[312964767,1706550641817,-1545.30906816,0.00035,2]
[312964768,1706550641827,-800.0,0.00035,3]
[312964769,1706550641836,-342.7398,0.00035,4]
[312964770,1706550641849,-450.0,0.00035,3]
[312964771,1706550641858,-164.0,0.00035,2]
[312964772,1706550641868,-164.0,0.00035,2]
[312964773,1706550641878,-165.0,0.00035,2]
[312964774,1706550641887,-165.0,0.00035,2]
[312964775,1706550641896,-165.0,0.00035,2]
[312964776,1706550641906,-121.19933184,0.00035,2]
[312964814,1706550643047,-4000.0,0.000313,2]
[312964819,1706550643057,-43.80066816,0.00035,2]
[312964825,1706550643067,-150.14,0.00035216,2]
[312964829,1706550643076,-13.47572779,0.00035411,30]
[312964831,1706550643088,-137.52427221,0.00035411,30]
[312964834,1706550643098,-224.11193058,0.00035584,2]
[312964837,1706550643108,-150.0,0.000357,2]
[312964876,1706550643305,-188.25041249,0.00035737,5]
[312964878,1706550643316,-11.74958751,0.00035737,5]
[312964880,1706550643326,-353.25040439,0.00035998,2]
[312964883,1706550643345,-32.72299561,0.00035998,2]
[312964885,1706550643355,-862.7665475,0.0003609,9]
[312964887,1706550643367,-17702.6708078,0.0003609,9]
[312964889,1706550643377,-1419.67,0.000361,3]
[312964891,1706550643387,-1419.67,0.000361,3]
[312964893,1706550643396,-1419.67,0.000361,3]
[312964895,1706550643405,-673.71963449,0.000361,3]
[312964898,1706550643421,-745.95036551,0.000361,3]
[312964900,1706550643430,-272.78943697,0.000361,3]
[312964902,1706550643441,-388.93617367,0.000361,3]
[312964905,1706550643457,-757.94438936,0.000361,3]
[312964907,1706550643466,-1419.67,0.000361,3]
[312964909,1706550643476,-1419.67,0.000361,3]
[312964911,1706550643486,-1419.67,0.000361,3]
[312964913,1706550643496,-1419.67,0.000361,3]
[312964915,1706550643505,-1419.67,0.000361,3]
[312964917,1706550643515,-1419.67,0.000361,3]
[312964919,1706550643526,-1419.67,0.000361,3]
[312964921,1706550643536,-1419.67,0.000361,3]
[312964923,1706550643545,-1419.67,0.000361,3]
[312964924,1706550643554,-1419.67,0.000361,3]
[312964926,1706550643564,-1419.67,0.000361,3]
[312964929,1706550643574,-1419.67,0.000361,3]
[312964930,1706550643583,-848.83518426,0.000361,3]
[312964935,1706550643615,-377.08973787,0.000361,3]
[312964937,1706550643627,-193.74507787,0.000361,3]
[312964939,1706550643637,-1212.07368996,0.000361,3]
[312964943,1706550643660,-207.59631004,0.000361,3]
[312964945,1706550643670,-1419.67,0.000361,3]
[312964947,1706550643680,-154.69,0.000361,3]
[312964949,1706550643690,-154.69,0.000361,3]
[312964951,1706550643699,-154.69,0.000361,3]
[312964953,1706550643709,-154.69,0.000361,3]
[312964954,1706550643719,-49.81491354,0.00036134,7]
[312964959,1706550646138,-150.0,0.00034482,2]
[312964960,1706550646147,-101.18508646,0.00036134,7]
[312964961,1706550646157,-50.17703062,0.00036174,2]
[312964962,1706550646290,-1019.33296938,0.00036174,2]
[312964963,1706550646300,-224.11193058,0.00036247,2]
[312964964,1706550646309,-1116.74097,0.000363,4]
[312964965,1706550646319,-1000.0,0.00036309,2]
[312964966,1706550646328,-154.34,0.00036438,2]
[312964967,1706550646338,-154.34,0.00036438,90]
[312964968,1706550646348,-3094.23955921,0.00036514,9]
[312964969,1706550646357,-3084.32408352,0.00036524,2]
[312964970,1706550646370,-3094.23955921,0.00036785,10]
[312964971,1706550646380,-2000.0,0.00036795,4]
[312964972,1706550646389,-591.0,0.000368,2]
[312964973,1706550646399,-151.0,0.00036871,4]
[312964974,1706550646408,-385.26539124,0.00036893,4]
[312964975,1706550646417,-150.0,0.00036894,2]
[312964976,1706550646427,-300.0,0.00036894,7]
[312964977,1706550646436,-224.11193058,0.00036911,2]
[312964978,1706550646445,-6188.47911842,0.0003699,10]
[312964979,1706550646455,-5905.64143277,0.00037,15]
[312964980,1706550646464,-850.0,0.00037,3]
[312964981,1706550646474,-200.0,0.00037068,5]
[312964982,1706550646483,-155.0,0.000372,2]
[312964983,1706550646492,-500.0,0.00037299,2]
[312964984,1706550646502,-200.0,0.00037299,2]
[312964985,1706550646511,-6188.47911842,0.00037509,10]
[312964986,1706550646523,-222.52871988,0.00037519,4]
[312964987,1706550646533,-6950.2937007,0.00037519,4]
[312964988,1706550646541,-224.11193058,0.00037574,2]
[312964989,1706550646550,-200.0,0.00037596,2]
[312964990,1706550646559,-800.0,0.00037597,5]
[312964991,1706550646569,-4921.66884322,0.0003762,2]
[312964992,1706550646578,-151.0,0.00037624,2]
[312964993,1706550646587,-1322.95285553,0.00037658,2]
[312964994,1706550646597,-210.0,0.00037665,5]
[312964995,1706550646606,-171.51031647,0.00037701,5]
[312964996,1706550646616,-204.0,0.00037715,2]
[312964997,1706550646625,-3094.23955921,0.00037726,10]
[312964998,1706550646635,-6188.47911842,0.00037879,10]
[312964999,1706550646644,-6188.47911842,0.00037888,10]
[312965000,1706550646653,-3094.23955921,0.00037889,10]
[312965001,1706550646663,-3048.39105157,0.00037889,4]
[312965002,1706550646673,-6521.87433234,0.00037889,4]
[312965003,1706550646683,-623.44358858,0.0003789,2]
[312965004,1706550646692,-12376.9582368,0.0003789,10]
[312965005,1706550646705,-201.70427864,0.00037898,2]
[312965006,1706550646715,-1262.71758815,0.00037898,4]
[312965007,1706550646725,-7171.71520774,0.00037898,4]
[312965008,1706550646734,-703.5222346,0.00037898,4]
[312965009,1706550646744,-155.0,0.00037898,2]
[312965010,1706550646754,-694.42463172,0.00037898,2]
[312965011,1706550646764,-2040.69333422,0.00037899,2]
[312965012,1706550646777,-155.0,0.00037899,4]
[312965013,1706550646787,-384.81341763,0.00037899,4]
[312965014,1706550646796,-500.0,0.000379,2]
[312965015,1706550646806,-3493.07,0.000379,4]
[312965016,1706550646816,-200.0,0.000379,2]
[312965017,1706550646826,-5854.61559977,0.000379,4]
[312965018,1706550646836,-500.0,0.000379,5]
[312965019,1706550646847,-263.27778731,0.000379,5]
[312965020,1706550646856,-681.0,0.000379,27]
[312965021,1706550646865,-500.0,0.000379,2]
[312965022,1706550646875,-200.0,0.000379,2]
[312965023,1706550646884,-523.8010228,0.000379,2]
[312965024,1706550646894,-68073.2703026,0.0003797,10]
[312965025,1706550646904,-94605.3000964,0.0003798,3]
[312965026,1706550646913,-94605.3000964,0.0003799,3]
[312965027,1706550646923,-1875.420311,0.00037997,2]
[312965028,1706550646932,-50000.0,0.00038,8]
[312965029,1706550646942,-250.0,0.00038,27]
[312965030,1706550646951,-34443.44239795,0.00038,2]
[312965031,1706550692915,209.48107074,0.00025138,10]
[312965032,1706550711068,155.50013682,0.00020698,2]
[312965033,1706550713401,492.28168687,0.00021689,2]
[312965034,1706550713426,1142.97926469,0.00021689,2]
[312965035,1706550717355,155.44142013,0.00020698,2]
[312965036,1706550747922,1211.57931518,0.00020697,2]
[312965037,1706550747951,17.58091859,0.00020697,2]
[312965038,1706550896686,162.51,0.00017638,2]
[312965039,1706550911792,948.9,0.00019872,2]
[312965040,1706550921638,175.99,0.00016712,2]
[312965041,1706550935828,176.69,0.00021579,2]
[312965042,1706550952237,412.48,0.00021653,2]
[312965043,1706550958353,150.0,0.0002168,2]
[312965044,1706550969081,380.11,0.00021656,2]
[312965045,1706550994813,167.58485656,0.00026893,12]
[312965046,1706551005235,85.73908141,0.00021641,2]
[312965047,1706551005260,164.26091859,0.00021641,2]
[312965048,1706551026701,150.0,0.00021579,2]
[312965049,1706551051093,188.63,0.00021617,2]
[312965050,1706551071052,500.0,0.0002158,2]
[312965051,1706551071910,200.0,0.0002158,2]
[312965052,1706551082358,1307.10908141,0.0002158,2]
[312965053,1706551082382,1091.09091859,0.0002158,2]
[312965054,1706551087474,200.0,0.0002158,2]
[312965055,1706551094812,150.0,0.00021579,2]
[312965056,1706551105728,200.0,0.0002158,2]
[312965057,1706551118891,167.79,0.00021594,2]
[312965058,1706551162960,150.0,0.00021579,2]
[312965059,1706551191986,200.0,0.00021647,2]
[312965060,1706551200834,150.14,0.00021586,2]
[312965061,1706551203162,150.0,0.00021594,2]
[312965062,1706551203392,50.97908141,0.00021594,2]
[312965063,1706551203418,99.02091859,0.00021594,2]
[312965064,1706551203548,150.0,0.00021594,2]
[312965065,1706551203766,150.0,0.00021594,2]
[312965066,1706551204076,150.0,0.00021594,2]
[312965067,1706551204284,150.0,0.00021594,2]
[312965068,1706551204496,150.0,0.00021594,2]
[312965069,1706551204643,150.0,0.00021594,2]
[312965070,1706551204851,150.0,0.00021594,2]
[312965071,1706551205040,150.0,0.00021594,2]
[312965072,1706551205245,150.0,0.00021594,2]
[312965073,1706551205445,150.0,0.00021594,2]
[312965074,1706551205648,150.0,0.00021594,2]
[312965075,1706551205876,150.0,0.00021594,2]
[312965076,1706551206052,150.0,0.00021594,2]
[312965077,1706551206221,150.0,0.00021594,2]
[312965078,1706551206403,150.0,0.00021594,2]
[312965079,1706551207123,150.0,0.00021594,2]
[312965080,1706551207177,10.97908141,0.00021594,2]
[312965081,1706551207201,139.02091859,0.00021594,2]
[312965082,1706551207264,150.0,0.00021594,2]
[312965083,1706551207305,150.0,0.00021594,2]
[312965084,1706551207369,150.0,0.00021594,2]
[312965085,1706551207562,150.0,0.00021594,2]
[312965086,1706551208013,150.0,0.00021594,2]
[312965087,1706551208224,150.0,0.00021594,2]
[312965088,1706551208413,150.0,0.00021594,2]
[312965089,1706551208585,150.0,0.00021594,2]
[312965090,1706551208770,150.0,0.00021594,2]
[312965091,1706551208975,150.0,0.00021594,2]
[312965092,1706551209159,150.0,0.00021594,2]
[312965093,1706551209368,150.0,0.00021594,2]
[312965094,1706551209572,150.78141213,0.00021594,2]
[312965095,1706551213847,150.0,0.00021566,2]
[312965096,1706551244293,183.28,0.00021538,2]
[312965097,1706551246977,86.91766928,0.00021566,2]
[312965098,1706551247000,148.01946771,0.00021566,2]
[312965099,1706551308507,2000.0,0.00021458,2]
[312965100,1706551335541,361.98053229,0.00019525,2]
[312965101,1706551335567,539.46946771,0.00019525,2]
[312965102,1706551354936,175.99,0.00016712,2]
[312965103,1706551384224,170.75,0.00021415,2]
[312965104,1706551388730,162.51,0.00017132,2]
[312965105,1706551389581,1461.28053229,0.00021478,2]
[312965106,1706551389615,2510.0,0.00021478,2]
[312965107,1706551389648,2510.0,0.00021478,2]
[312965108,1706551389681,2510.0,0.00021478,2]
[312965109,1706551389714,2510.0,0.00021478,2]
[312965110,1706551389744,2510.0,0.00021478,2]
[312965111,1706551389774,2510.0,0.00021478,2]
[312965112,1706551389805,2510.0,0.00021478,2]
[312965113,1706551389836,2510.0,0.00021478,2]
[312965114,1706551389867,2358.71946771,0.00021478,2]
[312965115,1706551412706,151.28053229,0.00021435,2]
[312965116,1706551412730,14.00946771,0.00021435,2]
[312965117,1706551429826,190.05,0.00021441,2]
[312965118,1706551430934,159.37,0.00021602,2]
[312965119,1706551445222,250.0,0.00021246,2]
[312965120,1706551469140,178.23312019,0.000217,2]
[312965121,1706551472805,155.0,0.000217,2]
[312965122,1706551473643,155.0,0.000217,2]
[312965123,1706551474317,155.0,0.000217,2]
[312965124,1706551484382,162.01160859,0.000217,2]
[312965125,1706551496276,401.4691115,0.000217,2]
[312965126,1706551500380,162.01160859,0.00020409,2]
[312965127,1706551502796,527.84508342,0.00021392,2]
[312965128,1706551502819,312.15491658,0.00021392,2]
[312965129,1706551503467,167.42,0.00021392,2]
[312965130,1706551505431,275.97,0.00021392,2]
[312965131,1706551507483,868.99398571,0.000217,2]
[312965132,1706551507795,155.0,0.000217,2]
[312965133,1706551508810,230.08829952,0.00021679,2]
[312965134,1706551508907,500.37279819,0.000217,2]
[312965135,1706551508928,176.97556231,0.000217,2]
[312965136,1706551509723,1263.3030925,0.000217,2]
[312965137,1706551511388,203.13655456,0.000217,2]
[312965138,1706551518389,162.01160859,0.00020409,2]
[312965139,1706551536384,167.21028768,0.00020409,2]
[312965140,1706551555626,200.0,0.00021409,2]
[312965141,1706551558872,155.0,0.000217,2]
[312965142,1706551562193,155.0,0.000217,2]
[312965143,1706551574588,27.36289436,0.00021679,2]
[312965144,1706551574618,149.32710564,0.00021679,2]
[312965145,1706551576710,1335.53,0.00021618,2]
[312965146,1706551580039,203.13655456,0.000217,2]
[312965147,1706551580289,155.0,0.000217,2]
[312965148,1706551589298,155.0,0.000217,2]
[312965149,1706551595984,512.0063398,0.000217,2]
[312965150,1706551596008,356.98764591,0.000217,2]
[312965151,1706551597415,677.3483605,0.000217,2]
[312965152,1706551623996,150.14,0.00021492,2]
[312965153,1706551644655,150.0,0.00021478,2]
[312965154,1706551646422,203.13655456,0.000217,2]
[312965155,1706551649283,200.0,0.00021591,2]
[312965156,1706551654390,772.38743903,0.00021473,2]
[312965157,1706551654414,1545.61256097,0.00021473,2]
[312965158,1706551668029,200.0,0.00021467,2]
[312965159,1706551669955,677.3483605,0.000217,2]
[312965160,1706551673790,87.03907853,0.000217,2]
[312965161,1706551673815,67.96092147,0.000217,2]
[312965162,1706551674475,868.99398571,0.000217,2]
[312965163,1706551732060,630.29094218,0.000217,2]
[312965164,1706551736824,200.0,0.00021426,2]
[312965165,1706551754439,677.3483605,0.000217,2]
[312965170,1706551767778,65.40579014,0.00021439,2]
[312965171,1706551767800,1934.59420986,0.00021439,2]
[312965172,1706551815320,200.0,0.000224,8]
[312965173,1706551817420,500.0,0.000225,8]
[312965174,1706551819519,700.0,0.000226,8]
[312965175,1706551821806,1000.0,0.000227,8]
[312965176,1706551823719,1200.0,0.000228,8]
[312965177,1706551825815,200.0,0.000229,8]
[312965190,1706551832343,-155.0,0.00021701,2]
[312965191,1706551832354,-155.0,0.00021701,2]
[312965192,1706551832364,-159.37,0.00021704,2]
[312965193,1706551832374,-901.45,0.00021789,2]
[312965194,1706551832385,-159.37,0.00021807,2]
[312965195,1706551832394,-159.37,0.00021909,2]
[312965196,1706551832404,-250.0,0.00021918,2]
[312965197,1706551832416,-183.28,0.00021995,2]
[312965198,1706551832426,-151.09808341,0.00022,2]
[312965199,1706551832437,-617.92309023,0.00022,2]
[312965200,1706551832448,-159.37,0.00022011,2]
[312965201,1706551832458,-3197.13386433,0.00022077,2]
[312965202,1706551832467,-393.15011915,0.000221,2]
[312965204,1706551832476,-159.37,0.00022114,2]
[312965206,1706551832485,-855.92,0.00022136,2]
[312965208,1706551832494,-623.18,0.00022164,2]
[312965210,1706551832503,-159.37,0.00022216,2]
[312965212,1706551832512,-176.69,0.00022227,2]
[312965214,1706551832522,-457.63,0.00022269,2]
[312965216,1706551832531,-159.37,0.00022318,2]
[312965218,1706551832540,-159.37,0.00022421,2]
[312965220,1706551832550,-183.28,0.00022451,2]
[312965222,1706551832559,-533.53647933,0.00022479,2]
[312965224,1706551832568,-184.13974982,0.00022484,2]
[312965225,1706551832577,-300.0,0.00022521,2]
[312965226,1706551832587,-150.0,0.00022521,2]
[312965227,1706551832595,-150.0,0.00022521,2]
[312965228,1706551832604,-159.37,0.00022523,2]
[312965229,1706551832614,-202.78330764,0.00022576,2]
[312965230,1706551832624,-322.83865526,0.00022576,2]
[312965231,1706551832634,-155.0,0.00022576,2]
[312965232,1706551832642,-377.11126663,0.00022576,2]
[312965233,1706551832652,-197.40756613,0.00022576,2]
[312965234,1706551832662,-381.62257452,0.00022576,2]
[312965235,1706551832672,-630.041593,0.00022576,2]
[312965236,1706551832680,-677.3483605,0.00022576,2]
[312965237,1706551832689,-500.0,0.00022577,2]
[312965238,1706551832699,-251.38421037,0.00022577,2]
[312965239,1706551832708,-864.295,0.00022577,2]
[312965240,1706551832717,-245.28549074,0.00022577,2]
[312965241,1706551832726,-155.90374873,0.00022577,2]
[312965242,1706551832735,-524.98204654,0.00022577,2]
[312965243,1706551832746,-5224.49310087,0.00022577,2]
[312965244,1706551832756,-232.43131942,0.00022577,2]
[312965245,1706551832767,-362.14263408,0.00022577,2]
[312965246,1706551832776,-228.79454347,0.00022577,2]
[312965247,1706551832786,-289.09716601,0.00022577,2]
[312965248,1706551832795,-155.0,0.00022577,2]
[312965249,1706551832805,-1059333.89072855,0.00022578,2]
[312965250,1706551832815,-90343.23717824,0.00022579,2]
[312965251,1706551832831,-4889.84198465,0.00022579,2]
[312965252,1706551835083,162.51,0.00017889,2]
[312965258,1706551838154,-390.90981559,0.00022579,2]
[312965259,1706551838212,-791.67515937,0.00022579,2]
[312965260,1706551838226,-1078.44184816,0.00022579,2]
[312965261,1706551838237,-500.0,0.00022579,2]
[312965262,1706551838249,-2028.07605,0.00022579,2]
[312965263,1706551838275,-3199.999998,0.00022579,2]
[312965264,1706551838298,-13005.12856162,0.00022579,2]
[312965265,1706551838329,-6767.6642663,0.00022579,2]
[312965266,1706551838340,-1186.84104202,0.00022579,2]
[312965267,1706551838384,-5058.86086469,0.00022579,2]
[312965268,1706551838396,-364.89736001,0.00022579,2]
[312965269,1706551838407,-529.82133345,0.00022579,2]
[312965277,1706551840690,-789.810015,0.00022361,2]
[312965278,1706551840702,-529.159995,0.00022361,2]
[312965279,1706551840713,-2003.72192414,0.00022361,2]
[312965280,1706551840726,-1962.90730991,0.00022361,2]
[312965281,1706551840804,-5390.77231129,0.00022361,2]
[312965282,1706551841526,-1153.5,0.00022361,2]
[312965283,1706551841543,-1027.15,0.00022361,2]
[312965284,1706551841554,-510.72,0.00022361,2]
[312965285,1706551841566,-10532.25844466,0.00022361,2]
[312965286,1706551841575,-27203.75934638,0.00022579,2]
[312965287,1706551841678,412.89579014,0.00020453,2]
[312965288,1706551841700,418.75420986,0.00020453,2]
[312965289,1706551841742,-52063.25273063,0.00022579,2]
[312965290,1706551841753,-55028.34136972,0.00022579,2]
[312965291,1706551841764,-810.16,0.00022579,2]
[312965340,1706551843329,-9158.78848674,0.00022579,2]
[312965341,1706551843386,-16995.89600443,0.00022579,2]
[312965342,1706551843397,-1968.0057,0.00022579,2]
[312965343,1706551843407,-3557.43007773,0.0002258,2]
[312965344,1706551843416,-155.0,0.0002261,2]
[312965345,1706551843425,-159.37,0.00022625,2]
[312965346,1706551843434,-213.36543943,0.00022628,2]
[312965347,1706551843443,-6219.17589574,0.00022628,2]
[312965348,1706551843452,-1015.47143302,0.00022628,2]
[312965349,1706551843461,-929.08236566,0.00022628,2]
[312965350,1706551843472,-161.94573961,0.00022628,4]
[312965351,1706551843481,-178.08036813,0.00022677,2]
[312965352,1706551843490,-279.50681082,0.00022677,2]
[312965353,1706551843499,-400.77765242,0.00022677,2]
[312965354,1706551843508,-1262.1320838,0.00022677,2]
[312965355,1706551843517,-155.0,0.00022677,2]
[312965356,1706551843525,-155.0,0.00022677,2]
[312965357,1706551843534,-155.0,0.00022677,2]
[312965358,1706551843544,-558075.07746255,0.0002268,2]
[312965359,1706551843553,-831.65,0.00022717,2]
[312965360,1706551843562,-159.37,0.00022728,2]
[312965361,1706551843571,-412.48,0.00022736,2]
[312965362,1706551843580,-176.69,0.00022775,2]
[312965363,1706551843589,-152.64318861,0.00022786,2]
[312965364,1706551843598,-163.88,0.00022805,2]
[312965365,1706551843607,-153.66883211,0.000229,2]
[312965367,1706551843617,-183.28,0.00022908,2]
[312965369,1706551843625,-2735.0,0.00022986,2]
[312965371,1706551843634,-1873.77811087,0.00022997,5]
[312965372,1706551843642,-204.7712179,0.00022998,2]
[312965373,1706551843651,-155.0,0.00022999,2]
[312965374,1706551843661,-500.0,0.00022999,2]
[312965375,1706551843669,-322.24528443,0.00022999,2]
[312965376,1706551843678,-453.23903771,0.00022999,2]
[312965377,1706551843687,-500.0,0.00022999,2]
[312965378,1706551843696,-500.0,0.00022999,2]
[312965379,1706551843704,-500.0,0.00022999,2]
[312965380,1706551843713,-374.65723051,0.00022999,2]
[312965381,1706551843724,-500.0,0.00022999,2]
[312965382,1706551843733,-500.0,0.00022999,2]
[312965383,1706551843741,-352.72981536,0.00022999,2]
[312965384,1706551843750,-581.12237026,0.00022999,2]
[312965385,1706551843759,-567.76020501,0.00022999,2]
[312965386,1706551843769,-87420.83573106,0.00023,2]
[312965387,1706551843784,-766.07782871,0.00023,2]
[312965388,1706551843795,-2475.35842361,0.00023,2]
[312965389,1706551843818,-534.20017826,0.00023,2]
[312965413,1706551846229,-548.50235475,0.00022578,2]
[312965415,1706551846242,-28601.25460954,0.00022578,2]
[312965417,1706551846252,-181.24950927,0.00022676,2]
[312965419,1706551846262,-437938.96225534,0.00023,2]
[312965422,1706551846282,-4131.76273008,0.00023,2]
[312965438,1706551846442,-382.03928712,0.00023,2]
[312965439,1706551857185,2300.0,0.000225,8]
[312965440,1706551859293,4700.0,0.000226,8]
[312965441,1706551859496,156.99,0.0002579,120]
[312965442,1706551861394,7000.0,0.000227,8]
[312965443,1706551863833,9400.0,0.000228,8]
[312965444,1706551865618,11800.0,0.000229,8]
[312965445,1706551882367,155.0,0.00020698,2]
[312965446,1706551898376,155.0,0.00020696,2]
[312965447,1706551914864,155.0,0.00020696,2]
[312965456,1706551930885,174.17562456,0.00020696,2]
[312965457,1706552273993,787.13,0.00019894,2]
[312965458,1706552329026,411.22,0.00021918,3]
[312965459,1706552430203,-595.96,0.00021702,2]
[312965460,1706552430230,-155.0,0.00021714,2]
[312965461,1706552430252,-250.0,0.00021715,2]
[312965462,1706552430273,-999.04,0.0002174,2]
[312965463,1706552430843,-1000.96,0.0002174,2]
[312965464,1706552432594,176.48,0.00021688,2]
[312965465,1706552469085,-150.0,0.00021763,2]
[312965466,1706552469107,-1850.0,0.00021764,2]
[312965467,1706552469648,-2000.0,0.00021764,2]
[312965468,1706552470397,-2000.0,0.00021764,2]
[312965469,1706552470951,-2000.0,0.00021764,2]
[312965470,1706552471592,-2000.0,0.00021764,2]
[312965471,1706552472225,-2000.0,0.00021764,2]
[312965472,1706552472925,-2000.0,0.00021764,2]
[312965473,1706552473550,-2000.0,0.00021764,2]
[312965474,1706552474439,-2000.0,0.00021764,2]
[312965475,1706552475187,-2000.0,0.00021764,2]
[312965476,1706552515697,822.56,0.00021038,2]
[312965477,1706552515717,2000.0,0.00021038,2]
[312965478,1706552515739,374.57386433,0.00021038,2]
[312965479,1706552523050,281.78051796,0.00021695,2]
[312965480,1706552535673,1343.64561771,0.00021038,2]
[312965481,1706552535694,543.04320566,0.00021038,2]
[312965482,1706552535750,200.0,0.00021656,2]
[312965483,1706552551169,534.42411814,0.00021695,2]
[312965484,1706552552984,155.0,0.00021695,2]
[312965485,1706552556300,150.0,0.00021634,2]
[312965486,1706552571170,532.18708705,0.00021695,2]
[312965487,1706552575013,190.44595438,0.00021695,2]
[312965488,1706552579917,167.79,0.0002161,2]
[312965489,1706552585434,200.0,0.00021627,2]
[312965490,1706552638260,155.0,0.00020818,2]
[312965491,1706552657292,151.21,0.00021614,2]
[312965492,1706552769065,200.0,0.00021612,2]
[312965493,1706552783314,191.82,0.0001729,2]
[312965494,1706552805906,3468.50375291,0.00021622,2]